bitfinex-derivatives/quotes_BNBF0:USTF0_20250331
["timestamp","ask_amount","ask_price","bid_price","bid_amount"]
[1743413727620,1.45744181,590.08,589.35,0.27581241]
[1743413727822,1.22218033,590.09,589.35,0.27581241]
[1743413728017,1.45742287,590.08,589.35,0.27581241]
[1743413728217,1.22218033,590.07,589.35,0.27581241]
[1743413729121,1.22218033,590.06,589.35,0.27581241]
[1743413729623,1.22218033,590.05,589.35,0.27581241]
[1743413729823,1.45710861,590.04,589.35,0.27581241]
[1743413730024,1.45710861,590.03,589.35,0.27581241]
[1743413730321,1.45710861,590.02,589.35,0.27581241]
[1743413730524,2.35771356,590.01,589.35,0.27581241]
[1743413730819,4.6883423,590.0,589.35,0.27581241]
[1743413731020,4.6883423,589.99,589.35,0.27581241]
[1743413731324,6.63758143,589.98,589.35,0.27581241]
[1743413731515,6.63758143,589.97,589.35,0.27581241]
[1743413731716,6.12908862,589.96,589.35,0.27581241]
[1743413731921,6.12908862,589.95,589.35,0.27581241]
[1743413732223,6.12908862,589.94,589.35,0.27581241]
[1743413732423,8.54377239,589.93,589.35,0.27581241]
[1743413732619,2.35771356,589.92,589.35,0.27581241]
[1743413732819,2.35771356,589.91,589.35,0.27581241]
[1743413733017,2.35771356,589.9,589.35,0.27581241]
[1743413733423,2.35771356,589.89,589.35,0.27581241]
[1743413733624,1.45710861,589.88,589.35,0.27581241]
[1743413733823,3.17744288,589.89,589.35,0.27581241]
[1743413734017,4.63474786,589.88,589.35,0.27581241]
[1743413734221,1.45734714,589.87,589.35,0.27581241]
[1743413734423,1.45734714,589.86,589.35,0.27581241]
[1743413734625,1.45734714,589.85,589.35,0.27581241]
[1743413734824,3.17744288,589.86,589.35,0.27581241]
[1743413735021,1.22218033,589.84,589.35,0.27581241]
[1743413735627,1.22218033,589.83,589.35,0.27581241]
[1743413736328,0.50841651,590.07,589.35,0.27581241]
[1743413736524,6.64122215,590.06,589.35,0.27581241]
[1743413736721,6.13280564,590.05,589.35,0.27581241]
[1743413736926,6.13280564,590.04,589.35,0.27581241]
[1743413737125,6.64122022,590.03,589.35,0.27581241]
[1743413737326,6.13280564,590.02,589.35,0.27581241]
[1743413737527,6.13280564,590.01,589.35,0.27581241]
[1743413737725,6.13280564,590.0,589.35,0.27581241]
[1743413737925,6.13280564,589.99,589.34,0.33936267]
[1743413738226,9.98918986,589.98,589.35,0.27583724]
[1743413738428,6.13280564,589.97,589.35,0.27583724]
[1743413738627,6.13280564,589.96,589.35,0.27583724]
[1743413738923,4.69105336,589.95,589.35,0.27583724]
[1743413739124,4.69105336,589.94,589.35,0.27583724]
[1743413739327,4.69079965,589.93,589.35,0.27583724]
[1743413739527,2.35865058,589.92,589.35,0.27583724]
[1743413739823,2.35865058,589.91,589.36,0.27584427]
[1743413740028,2.35865058,589.9,589.35,0.27584427]
[1743413740325,2.35865058,589.89,589.36,0.27584427]
[1743413740628,2.35865058,589.88,589.37,0.27584477]
[1743413740831,1.45759317,589.87,589.38,0.27584477]
[1743413741031,1.45759317,589.86,589.35,0.27584477]
[1743413741231,3.17853471,589.89,589.36,0.27584477]
[1743413741532,2.35830106,589.88,589.37,0.27584477]
[1743413741723,3.17853471,589.88,589.38,0.27584477]
[1743413741929,1.4573036,589.87,589.35,0.27584477]
[1743413742127,1.4573036,589.86,589.36,0.27584477]
[1743413742331,1.4573036,589.85,589.35,0.27584477]
[1743413742532,1.4573036,589.84,589.35,0.27584477]
[1743413742725,3.17853471,589.85,589.35,0.27584477]
[1743413742932,1.45741293,589.84,589.35,0.27584477]
[1743413743133,3.17853471,589.84,589.35,0.27584477]
[1743413744132,1.65471378,590.15,589.35,0.27584477]
[1743413744331,6.64276382,590.14,589.35,0.27584477]
[1743413744532,6.64276382,590.13,589.35,0.27584477]
[1743413744834,6.64276253,590.12,589.35,0.27584477]
[1743413745035,6.13442236,590.11,589.08,0.27584477]
[1743413745236,6.13442236,590.1,589.09,0.27584477]
[1743413745432,4.6923027,590.09,589.1,0.27584477]
[1743413745735,4.6923027,590.08,589.11,0.27584477]
[1743413746034,4.6923027,590.08,589.12,0.27584477]
[1743413746035,4.6923027,590.07,589.12,0.27584477]
[1743413746234,4.6923027,590.06,589.13,0.27584477]
[1743413746435,2.35939321,590.05,589.14,0.27584477]
[1743413746629,2.35939321,590.04,589.15,0.27584477]
[1743413746830,1.45806843,590.03,589.15,0.27584477]
[1743413747037,4.63752551,590.02,589.16,0.27584477]
[1743413747237,2.35976961,590.01,589.08,0.29513911]
[1743413747534,2.35976961,590.0,589.09,0.27584477]
[1743413747735,1.45806843,589.99,589.1,0.27584477]
[1743413747934,1.45806843,589.98,589.11,0.27584477]
[1743413748235,4.63752551,589.97,589.12,0.27584477]
[1743413748534,1.45806843,589.96,589.13,0.27584477]
[1743413748734,4.63752551,589.95,589.14,0.27584477]
[1743413748931,1.4592172,589.94,589.15,0.27584477]
[1743413749135,1.45916854,589.93,588.72,0.27584477]
[1743413749435,2.6823602,589.92,588.73,0.27584477]
[1743413749631,1.22286811,589.92,588.74,0.27584477]
[1743413749835,1.22286811,589.92,588.75,0.27584477]
[1743413750036,1.22286811,589.91,588.76,0.27584477]
[1743413750331,1.22286811,589.91,588.77,0.27584477]
[1743413750536,1.22286811,589.9,588.75,0.29518042]
[1743413750734,1.22286811,589.9,588.76,0.27581336]
[1743413750931,1.22286811,589.9,588.75,0.29518042]
[1743413750932,1.22286811,589.9,588.77,0.27581336]
[1743413751132,1.22286811,589.9,588.78,0.27581336]
[1743413751337,1.22286811,589.89,588.79,0.27581336]
[1743413751532,1.22286811,589.89,588.8,0.27581336]
[1743413751737,1.22286811,589.89,588.81,0.27581336]
[1743413751939,1.22286811,589.88,588.82,0.27581336]
[1743413752134,1.22286811,589.88,588.83,0.27581336]
[1743413752434,1.22286811,589.87,588.84,0.27581336]
[1743413752634,1.22286811,589.87,588.85,0.27581336]
[1743413752939,1.22286811,589.87,588.86,0.27581336]
[1743413753135,1.22286811,589.86,588.48,0.27581336]
[1743413753340,1.22286811,589.86,588.79,0.29521673]
[1743413753539,1.22286811,589.86,588.8,0.27581336]
[1743413753734,1.22286811,589.85,588.81,0.27581336]
[1743413753935,1.22286811,589.85,588.82,0.27581336]
[1743413754136,1.22286811,589.84,588.83,0.27582838]
[1743413754339,1.22286811,589.84,588.84,0.27582838]
[1743413754542,1.22286811,589.84,588.85,0.27582838]
[1743413754737,1.22286811,589.84,588.44,0.27582838]
[1743413754938,1.22286811,589.83,588.43,2.5552563]
[1743413755143,1.22286811,589.83,588.45,0.29524553]
[1743413755341,1.22286811,589.83,588.46,0.27583197]
[1743413755542,1.22286811,589.82,588.47,0.27583197]
[1743413755836,1.22286811,589.82,588.48,0.27583197]
[1743413756045,1.22286811,589.81,588.62,2.5552563]
[1743413756342,1.22286811,589.81,588.63,0.27583197]
[1743413756541,1.22286811,589.81,588.64,0.27583197]
[1743413756836,1.22286811,589.8,588.65,0.27583197]
[1743413757041,1.22286811,589.8,588.66,0.27583197]
[1743413757239,1.22286811,589.8,588.67,0.27583197]
[1743413757543,0.29524553,590.02,588.68,0.27583197]
[1743413757742,6.14025829,590.01,588.68,0.27583197]
[1743413757937,1.22399683,589.79,588.69,0.27583197]
[1743413758242,1.22399683,589.79,588.7,0.27583197]
[1743413758638,1.22399683,589.78,588.71,0.27583197]
[1743413758838,1.22399683,589.78,588.72,0.27583197]
[1743413759040,1.22399683,589.77,588.73,0.27583197]
[1743413759342,1.22399683,589.77,588.74,0.27583197]
[1743413759536,1.22399683,589.77,588.75,0.27583197]
[1743413759736,1.22399683,589.77,588.76,0.27583197]
[1743413759937,1.22399683,589.76,588.77,0.27583197]
[1743413760136,1.22399683,589.76,588.55,0.29523551]
[1743413760137,1.22399683,589.76,588.78,0.27583197]
[1743413760335,1.22399683,589.76,588.56,2.5552563]
[1743413760336,1.4434713,589.97,588.79,0.27583197]
[1743413760540,6.14015912,589.96,588.8,0.27583197]
[1743413760742,0.29523551,590.02,588.81,0.27583197]
[1743413761043,1.65471378,590.11,588.56,2.5552563]
[1743413761044,3.86037935,589.95,588.82,0.27583197]
[1743413761344,3.86037935,589.95,588.83,0.27583197]
[1743413761545,3.86037935,589.95,588.84,0.27583197]
[1743413761745,1.9584247,590.09,588.85,0.27583197]
[1743413761945,2.362027,590.08,588.86,0.27583197]
[1743413762147,2.36199576,590.07,588.87,0.27583197]
[1743413762447,2.36199576,590.06,588.66,0.27583197]
[1743413762646,2.36199576,590.05,588.67,0.27583197]
[1743413762846,2.68336426,590.04,588.66,0.27583197]
[1743413763048,1.45967577,590.03,588.67,0.27583197]
[1743413763242,1.45967577,590.02,588.66,0.27583197]
[1743413763444,1.45967577,590.01,588.66,0.27583197]
[1743413763645,1.45967577,590.0,588.66,0.27583197]
[1743413763848,1.22368849,590.01,588.66,0.27583197]
[1743413764044,1.45842639,590.0,587.78,0.27583197]
[1743413764247,1.22368849,589.99,588.65,0.29533072]
[1743413764448,1.22368849,589.99,588.66,0.27583197]
[1743413764648,1.22368849,589.98,587.78,0.27583197]
[1743413764845,1.22368849,589.98,587.79,0.27583197]
[1743413765046,1.22368849,589.98,587.8,0.27583197]
[1743413765248,0.29533323,589.97,587.81,0.27583197]
[1743413765449,0.29533323,589.97,587.82,0.27583197]
[1743413765646,1.22368849,589.96,587.83,0.27583197]
[1743413765851,1.22368849,589.96,587.84,0.27583197]
[1743413766055,1.22368849,589.96,587.94,0.34017076]
[1743413766347,1.22368849,589.95,587.95,0.27583197]
[1743413766550,1.22368849,589.95,587.97,0.3401534]
[1743413766749,1.22368849,589.94,587.98,0.27583197]
[1743413767053,1.22368849,589.94,588.0,0.34013605]
[1743413767251,1.22368849,589.94,588.01,0.27583197]
[1743413767446,1.22368849,589.94,588.0,0.34013605]
[1743413767650,1.22368849,589.93,588.01,0.27588181]
[1743413767948,1.22368849,589.93,588.03,0.3401187]
[1743413768151,1.22368849,589.93,588.04,0.27587048]
[1743413768345,0.29530315,589.96,588.05,0.27587048]
[1743413768552,0.29530315,589.96,588.06,0.27587048]
[1743413768747,1.45801582,589.95,588.07,0.27587048]
[1743413768946,2.35918343,589.94,588.04,0.27587048]
[1743413769145,2.35918343,589.93,588.06,0.34010135]
[1743413769351,2.35918343,589.92,588.07,0.27587048]
[1743413769548,5.53894957,589.91,588.09,0.340084]
[1743413769746,2.35918343,589.9,588.1,0.27587048]
[1743413769944,2.35918343,589.89,588.12,0.34006665]
[1743413770149,1.45801582,589.88,588.13,0.27587048]
[1743413770452,1.45801582,589.87,588.15,0.3400493]
[1743413770652,1.22278892,589.88,588.16,0.27587048]
[1743413770852,1.45717162,589.87,588.18,0.34003196]
[1743413771147,2.67959242,589.86,588.19,0.27587048]
[1743413771451,1.22278892,589.86,588.21,0.34001462]
[1743413771653,1.22278892,589.85,588.22,0.27587048]
[1743413771849,1.22278892,589.85,588.24,0.33999728]
[1743413772051,1.22278892,589.85,588.25,0.27587048]
[1743413772247,1.22278892,589.85,588.27,0.33997994]
[1743413772452,1.22278892,589.84,588.28,0.27587048]
[1743413772652,1.22278892,589.84,588.3,0.3399626]
[1743413772848,1.22278892,589.84,588.31,0.27587048]
[1743413773051,1.22278892,589.83,588.33,0.33994526]
[1743413773251,1.22278892,589.83,588.34,0.27587048]
[1743413773449,1.22278892,589.83,588.35,0.27587048]
[1743413773650,1.22278892,589.82,588.36,0.27587048]
[1743413773850,1.22278892,589.82,588.37,0.61579263]
[1743413774053,1.22278892,589.82,588.39,0.3399106]
[1743413774249,1.22278892,589.81,588.4,0.27587048]
[1743413774453,1.22278892,589.81,588.42,0.33989327]
[1743413774654,1.22278892,589.81,588.43,0.27587048]
[1743413774953,0.29529564,589.94,588.44,0.27587048]
[1743413775256,1.22134085,589.8,588.46,0.33987016]
[1743413775457,1.22134085,589.8,588.47,0.27589577]
[1743413775657,1.22134085,589.79,588.49,0.33985284]
[1743413775851,1.22134085,589.79,588.5,0.27589577]
[1743413776058,1.22134085,589.79,588.52,0.33983551]
[1743413776256,1.22134085,589.79,588.53,0.27589577]
[1743413776452,2.3564031,590.09,588.55,0.33981819]
[1743413776654,2.3564031,590.08,588.56,0.27589577]
[1743413776954,2.3564031,590.07,588.58,0.33980087]
[1743413777154,3.17591953,590.08,588.58,0.33980087]
[1743413777155,2.3564031,590.06,588.59,0.27589577]
[1743413777354,2.3564031,590.05,588.61,0.33978355]
[1743413777551,1.45619061,590.04,588.62,0.27589577]
[1743413777757,1.45619061,590.03,588.64,0.33976624]
[1743413777955,1.45619061,590.02,588.65,0.27589577]
[1743413778257,1.22146877,590.02,588.67,0.33974892]
[1743413778457,1.22146877,590.02,588.68,0.27589577]
[1743413778757,1.22146877,590.02,588.7,0.33973161]
[1743413778957,1.22146877,590.01,588.71,0.27589577]
[1743413779652,1.22146877,590.0,588.71,0.27589577]
[1743413780153,1.51666797,589.99,588.73,0.3397143]
[1743413780352,1.51666797,589.99,588.74,0.27589577]
[1743413780553,1.51666797,589.99,588.76,0.33969699]
[1743413780751,1.51666797,589.99,588.77,0.27589577]
[1743413781056,1.22146877,589.98,588.77,0.27589577]
[1743413781655,1.95445076,590.13,588.78,0.27589577]
[1743413781850,1.95445076,590.13,588.79,0.27589577]
[1743413782056,0.29517416,590.07,588.8,0.27589577]
[1743413782253,0.29517416,590.07,588.81,0.27583811]
[1743413782453,0.29517416,590.07,588.82,0.27583811]
[1743413782759,0.29517416,590.07,588.84,0.33965083]
[1743413782959,0.29517416,590.07,588.85,0.27583811]
[1743413783160,6.63653302,590.06,588.86,0.27583811]
[1743413783460,6.63653302,590.05,588.87,0.27583811]
[1743413783655,6.63653302,590.04,588.88,0.27583811]
[1743413783854,10.490525,590.03,588.89,0.27583811]
[1743413784052,6.63653302,590.02,588.9,0.27587003]
[1743413784258,6.63653302,590.01,588.91,0.27587003]
[1743413784459,9.98164176,590.0,588.92,0.27587003]
[1743413784752,3.85399198,590.0,588.93,0.61546896]
[1743413784958,6.12725658,589.99,588.94,0.61546319]
[1743413785158,6.12725658,589.99,588.95,0.61545743]
[1743413785159,6.12725658,589.98,588.95,0.61545743]
[1743413785460,6.12725658,589.97,588.96,0.61545166]
[1743413785661,9.98124856,589.96,588.97,0.27587003]
[1743413785853,6.12725658,589.95,588.96,0.33958163]
[1743413786059,6.12725658,589.94,588.97,0.27589217]
[1743413786254,6.12725658,589.94,588.96,0.33958163]
[1743413786255,6.12738612,589.93,588.98,0.27589217]
[1743413786459,6.12738612,589.92,588.99,0.27589217]
[1743413786657,6.12738612,589.91,588.97,0.27589217]
[1743413786859,6.12738612,589.9,588.98,0.27589217]
[1743413787059,6.12738612,589.89,588.99,0.27589217]
[1743413787265,6.12738612,589.88,588.97,0.27589217]
[1743413787458,6.12738612,589.87,588.98,0.27589217]
[1743413787661,4.68691256,589.86,588.99,0.27589217]
[1743413787960,2.35668697,589.85,589.0,0.61545074]
[1743413788165,2.35668697,589.84,589.01,0.61544497]
[1743413788361,1.45639099,589.83,589.02,0.61543921]
[1743413788565,3.17595821,589.83,589.03,0.61543344]
[1743413788762,0.2951992,589.93,589.04,0.27589217]
[1743413788763,1.22150745,589.82,589.04,0.27589217]
[1743413788960,1.45727309,589.81,589.05,0.61542192]
[1743413789162,1.22150745,589.82,589.06,0.61541615]
[1743413789358,1.45738808,589.81,589.07,0.33951822]
[1743413789560,3.17741076,589.81,589.08,0.27588847]
[1743413789758,3.17741076,589.81,589.09,0.61539516]
[1743413789959,3.17741076,589.81,589.1,0.27588847]
[1743413790165,1.4574551,589.8,589.11,0.27588847]
[1743413790466,1.4574551,589.8,589.09,0.33950669]
[1743413790467,3.17741076,589.8,589.12,0.27588847]
[1743413790659,3.17741076,589.8,589.1,0.27588847]
[1743413790866,1.22150745,589.79,589.11,0.27588847]
[1743413791266,3.17758587,589.78,589.1,0.27588847]
[1743413791462,3.17758587,589.78,589.11,0.27588847]
[1743413791765,3.17758587,589.78,589.12,0.27588847]
[1743413791963,2.67930202,589.77,589.12,0.3394894]
[1743413792169,1.22150745,589.77,589.13,0.27588847]
[1743413792366,1.22150745,589.76,589.13,0.27588847]
[1743413792963,1.22150745,589.75,589.13,0.27588847]
[1743413793361,1.22150745,589.74,589.13,0.27588847]
[1743413794069,1.22150745,589.73,589.13,0.27588847]
[1743413794662,1.22150745,589.72,589.13,0.27588847]
[1743413794866,1.22150745,589.72,589.12,0.3394894]
[1743413795061,1.66165039,590.03,589.13,0.27588407]
[1743413795266,6.64313089,590.02,589.13,0.27588407]
[1743413795465,6.64313089,590.01,589.13,0.27588407]
[1743413795768,6.6432663,590.0,589.13,0.27588407]
[1743413795969,6.6432663,589.99,589.13,0.27588407]
[1743413796167,6.13475739,589.98,589.13,0.27588407]
[1743413796368,6.13475739,589.97,589.13,0.27588407]
[1743413796567,6.13475739,589.96,589.12,0.3394894]
[1743413796769,6.13475739,589.95,589.13,0.27586536]
[1743413796969,6.13475739,589.94,589.13,0.27586536]
[1743413797162,6.13475739,589.93,589.13,0.27586536]
[1743413797361,6.13475739,589.92,589.14,0.33947788]
[1743413797563,4.69254959,589.91,589.15,0.27586536]
[1743413797767,4.69254959,589.9,589.16,0.33946635]
[1743413797963,2.35952207,589.89,589.17,0.27586536]
[1743413798170,3.85768584,589.91,589.17,0.27586536]
[1743413798366,1.2229518,589.88,589.17,0.27586536]
[1743413798770,4.45659553,590.18,589.17,0.27586536]
[1743413798969,6.14049125,590.17,589.18,0.33945483]
[1743413799169,6.14049125,590.16,589.19,0.27586536]
[1743413799376,6.14041907,590.15,589.2,0.33944331]
[1743413799571,6.14050419,590.14,589.21,0.27586536]
[1743413799772,6.14050419,590.13,589.22,0.33943179]
[1743413799966,6.14050419,590.12,589.23,0.27586536]
[1743413800171,4.69692952,590.11,589.24,0.61523501]
[1743413800371,4.69692952,590.1,589.25,0.61522924]
[1743413800673,6.14027401,590.09,589.26,0.27581474]
[1743413800872,6.14027401,590.08,589.26,0.27581474]
[1743413801070,4.69692952,590.07,589.26,0.27581474]
[1743413801270,4.69692952,590.06,589.26,0.27581474]
[1743413801473,4.69692952,590.05,589.26,0.27581474]
[1743413801672,2.36175451,590.04,589.25,0.3394145]
[1743413801869,5.54432929,590.03,589.26,0.2758385]
[1743413802071,2.36175451,590.02,589.26,0.2758385]
[1743413802271,3.18257478,590.03,589.26,0.2758385]
[1743413802272,2.36175451,590.01,589.26,0.2758385]
[1743413802470,5.54432929,590.0,589.26,0.2758385]
[1743413802676,2.36175451,589.99,589.26,0.2758385]
[1743413802976,4.69693215,589.98,589.26,0.2758385]
[1743413803171,4.69693215,589.97,589.26,0.2758385]
[1743413803374,2.36175451,589.96,589.26,0.2758385]
[1743413803575,4.697383,589.95,589.26,0.2758385]
[1743413803874,2.36175451,589.94,589.27,0.27587711]
[1743413804077,2.36175451,589.93,589.27,0.27587711]
[1743413804272,2.36175451,589.92,589.28,0.27587711]
[1743413804472,2.36175451,589.91,589.28,0.27587711]
[1743413804675,2.36175451,589.91,589.25,0.3394145]
[1743413804676,2.36175451,589.9,589.29,0.27587711]
[1743413804877,1.45952034,589.89,589.26,0.27587711]
[1743413805074,1.45952034,589.88,589.27,0.27587711]
[1743413805273,1.46036882,589.87,589.26,0.27587711]
[1743413805475,3.18257478,589.88,589.26,0.27587711]
[1743413805672,1.46066857,589.87,589.26,0.27587711]
[1743413805873,1.22406722,589.87,589.26,0.27587711]
[1743413806073,1.46093415,589.86,589.26,0.27587711]
[1743413806273,1.22406722,589.87,589.26,0.27587711]
[1743413806577,1.22406722,589.85,589.26,0.27587711]
[1743413806776,6.14758882,589.84,589.26,0.27587711]
[1743413806973,6.14758882,589.83,589.26,0.27587711]
[1743413807178,6.14758882,589.82,589.26,0.27587711]
[1743413807379,10.01028141,589.81,589.26,0.27587711]
[1743413807579,4.70233499,589.8,589.26,0.27587711]
[1743413807773,4.70233499,589.79,589.26,0.27587711]
[1743413807977,4.70233499,589.78,589.26,0.27587711]
[1743413808177,4.70236205,589.77,589.26,0.27587711]
[1743413808478,2.36445724,589.76,589.26,0.27587711]
[1743413808678,2.36445724,589.75,589.26,0.27587711]
[1743413808880,2.36445724,589.74,589.26,0.27587711]
[1743413809178,4.64587435,589.73,589.26,0.27587711]
[1743413809380,1.4611736,589.72,589.26,0.27587711]
[1743413809575,1.4611736,589.71,589.26,0.27587711]
[1743413809777,1.22406722,589.7,589.26,0.27587711]
[1743413810373,1.22406722,589.69,589.26,0.27587711]
[1743413810978,1.22406722,589.68,589.26,0.27587711]
[1743413811379,1.22406722,589.67,589.26,0.27587711]
[1743413812084,1.22406722,589.66,589.26,0.27587711]
[1743413812779,1.22406722,589.65,589.26,0.27587711]
[1743413813283,1.22406722,589.64,589.26,0.27587711]
[1743413813880,1.22406722,589.63,589.26,0.27587711]
[1743413814582,3.78424084,589.93,589.27,0.2758897]
[1743413814779,6.14857039,589.92,589.26,0.2758897]
[1743413814980,6.14857039,589.91,589.27,0.2758897]
[1743413815186,6.14857039,589.9,589.26,0.2758897]
[1743413815387,6.14857039,589.89,589.27,0.2758897]
[1743413815585,6.14857039,589.88,589.26,0.2758897]
[1743413815781,10.0125438,589.87,589.26,0.2758897]
[1743413815988,6.14857039,589.86,589.26,0.2758897]
[1743413816187,6.14857039,589.85,589.26,0.2758897]
[1743413816389,4.70288637,589.84,589.26,0.2758897]
[1743413816588,4.70288637,589.83,589.26,0.2758897]
[1743413816789,4.70169943,589.82,589.26,0.2758897]
[1743413817088,5.55026443,589.81,589.26,0.2758897]
[1743413817288,1.46109055,589.8,589.26,0.2758897]
[1743413817589,1.46109055,589.79,589.26,0.2758897]
[1743413817786,3.18593488,589.8,589.26,0.2758897]
[1743413818184,1.22535957,589.79,589.26,0.2758897]
[1743413819188,1.22535957,589.78,589.26,0.2758897]
[1743413819700,1.22535957,589.77,589.26,0.2758897]
[1743413820399,1.22535957,589.76,589.26,0.2758897]
[1743413821000,1.22535957,589.75,589.26,0.2758897]
[1743413821300,1.22535957,589.75,589.27,0.27589743]
[1743413821497,1.22535957,589.75,589.26,0.27589743]
[1743413821795,5.55145611,589.74,589.26,0.27589743]
[1743413822000,9.33493984,589.73,589.25,0.3394145]
[1743413822194,6.65704806,589.72,588.27,2.5552563]
[1743413822392,6.65704806,589.71,588.29,0.33996838]
[1743413822595,6.65704806,589.7,588.3,0.27602254]
[1743413822802,6.65704806,589.69,588.31,0.27602254]
[1743413823099,6.65704806,589.68,588.32,0.27602254]
[1743413823300,3.86483464,589.69,588.29,0.33996838]
[1743413823301,6.65704806,589.67,588.33,0.27602254]
[1743413823601,6.65704806,589.67,588.29,0.33996838]
[1743413823602,6.65704806,589.66,588.34,0.27602254]
[1743413823797,6.65704806,589.65,588.35,0.27602254]
[1743413823997,3.86483464,589.66,588.36,0.27602254]
[1743413823998,6.14842184,589.64,588.36,0.27602254]
[1743413824197,6.14842184,589.63,588.37,0.27602254]
[1743413824399,6.65719524,589.62,588.38,0.27602254]
[1743413824598,6.65719524,589.62,588.39,0.27602254]
[1743413824599,6.65719524,589.61,588.39,0.27602254]
[1743413824799,6.65720489,589.6,588.4,0.27602254]
[1743413825102,6.14842184,589.59,588.41,0.27602254]
[1743413825294,6.65724706,589.58,588.42,0.27602254]
[1743413825494,6.65724706,589.57,588.35,0.27602254]
[1743413825695,6.14842184,589.56,588.35,0.27602254]
[1743413825898,6.65724706,589.55,588.35,0.27602254]
[1743413826097,6.65724706,589.54,588.35,0.27602254]
[1743413826300,6.65724706,589.53,588.35,0.27602254]
[1743413826501,6.14842184,589.52,588.35,0.27602254]
[1743413826703,5.7537786,589.51,588.35,0.27602254]
[1743413826902,6.65724706,589.5,588.35,0.27602254]
[1743413827095,6.65724706,589.49,588.35,0.27602254]
[1743413827295,6.65724706,589.48,588.3,0.27602254]
[1743413827503,6.65724706,589.47,588.31,0.27602254]
[1743413827701,6.65724706,589.46,588.31,0.27602254]
[1743413827903,6.65724706,589.46,588.29,0.33996838]
[1743413827904,6.65748625,589.45,588.32,0.27602254]
[1743413828203,6.14842184,589.44,588.3,0.27602254]
[1743413828404,6.65748851,589.43,588.3,0.57151501]
[1743413828600,6.65750699,589.42,588.31,0.27602254]
[1743413828800,2.36493811,589.41,588.31,0.27602254]
[1743413828998,1.46146965,589.4,588.31,0.27602254]
[1743413829201,1.46146965,589.39,588.31,0.27602254]
[1743413829401,1.46146965,589.38,588.31,0.27602254]
[1743413829700,2.35704414,589.37,588.31,0.27602254]
[1743413829905,1.46146965,589.36,588.32,0.27602254]
[1743413830105,3.186518,589.36,588.29,0.33996838]
[1743413830306,2.3429974,589.35,588.3,0.27621991]
[1743413830505,1.44837798,589.34,588.31,0.27621991]
[1743413830706,1.44837798,589.33,588.32,0.27621991]
[1743413830909,3.186518,589.34,588.33,0.27621991]
[1743413831107,3.186518,589.34,588.34,0.27621991]
[1743413831302,0.29552007,589.36,588.29,0.33996838]
[1743413831303,4.63263324,589.33,588.35,0.27621991]
[1743413831501,1.44611524,589.32,588.36,0.27621991]
[1743413831701,1.44497599,589.31,588.37,0.27621991]
[1743413831906,1.44487112,589.3,588.29,0.33996838]
[1743413832105,1.44487112,589.29,588.3,0.27625551]
[1743413832303,1.44487112,589.28,588.31,0.27625551]
[1743413832506,1.44487112,589.27,588.32,0.27625551]
[1743413832707,1.44487112,589.26,588.33,0.27625551]
[1743413832902,3.186518,589.26,588.3,0.27625551]
[1743413833101,3.186518,589.26,588.31,0.27625551]
[1743413833305,3.186518,589.26,588.32,0.27625551]
[1743413833500,1.44255672,589.25,588.33,0.27625551]
[1743413833701,1.44254673,589.24,588.3,0.27625551]
[1743413834008,1.44254673,589.23,588.31,0.27625551]
[1743413834204,3.186518,589.23,588.3,0.27625551]
[1743413834402,3.186518,589.23,588.31,0.27625551]
[1743413834606,3.186518,589.23,588.3,0.27625551]
[1743413834810,3.186518,589.22,588.3,0.27625551]
[1743413835006,1.44244637,589.21,588.3,0.27625551]
[1743413835209,1.44243403,589.2,588.3,0.27625551]
[1743413835509,4.62802368,589.19,588.3,0.27625551]
[1743413835710,3.186518,589.19,588.31,0.27625551]
[1743413835910,6.06544184,589.18,588.32,0.27625551]
[1743413836211,4.63933369,589.17,588.33,0.27625551]
[1743413836414,4.63728674,589.16,588.3,0.27625551]
[1743413836610,4.63728674,589.15,588.3,0.27625551]
[1743413836810,1.22535957,589.17,588.31,0.33995682]
[1743413837212,1.22535957,589.16,588.31,0.33995682]
[1743413837412,1.22535957,589.16,588.32,0.27625551]
[1743413837711,1.22535957,589.15,588.33,0.33994526]
[1743413837906,1.22535957,589.15,588.34,0.27625551]
[1743413838112,1.22535957,589.15,588.35,0.33993371]
[1743413838306,0.29552007,589.36,588.35,0.33993371]
[1743413838515,6.06296986,589.35,588.36,0.27625551]
[1743413838708,0.29552007,589.36,588.35,0.33993371]
[1743413838709,6.06296986,589.34,588.37,0.27625551]
[1743413838909,6.06259118,589.33,588.38,0.27625551]
[1743413839112,4.63747576,589.32,588.39,0.3399106]
[1743413839305,4.63747576,589.31,588.4,0.27625551]
[1743413839509,4.63747576,589.3,588.41,0.33989904]
[1743413839711,2.33191148,589.29,588.42,0.27619673]
[1743413839913,2.33191148,589.28,588.42,0.27619673]
[1743413840110,0.89093381,589.27,588.42,0.27619673]
[1743413840311,4.63585016,589.26,588.42,0.27619673]
[1743413840513,4.63585016,589.25,588.42,0.27619673]
[1743413840816,6.06017302,589.24,588.42,0.27619673]
[1743413841008,4.63585016,589.23,588.42,0.27619673]
[1743413841314,6.06013269,589.22,588.42,0.27619673]
[1743413841513,6.29750055,589.21,588.42,0.27619673]
[1743413841711,4.63585016,589.2,588.42,0.27619673]
[1743413841912,4.63585016,589.2,588.41,0.33989904]
[1743413841913,4.63585016,589.19,588.43,0.27619673]
[1743413842113,3.82051639,589.2,588.41,0.33989904]
[1743413842114,2.33064176,589.18,588.44,0.27619673]